[Event "Early-Titled-Tuesday-Blitz-December-26-2023"]
[Site "Chess.com"]
[Date "2023.12.26"]
[Round "7"]
[White "thechesscorner64"]
[Black "Felix-Rose"]
[Result "0-1"]
[WhiteElo "2406"]
[BlackElo "2256"]
[TimeControl "180+1"]
[EndTime "9:18:25 PST"]
[Termination "Felix-Rose won by checkmate"]

1. e4 {[%clk 0:03:00.9]} 1... g6 {[%clk 0:02:59.2]} 2. d4 {[%clk 0:03:00.3]}
2... Bg7 {[%clk 0:02:59.4]} 3. Nc3 {[%clk 0:03:00.3]} 3... d6 {[%clk 0:02:59.7]}
4. h3 {[%clk 0:03:00.2]} 4... a6 {[%clk 0:02:59.1]} 5. Nf3 {[%clk 0:02:58.5]}
5... b5 {[%clk 0:02:56]} 6. Bd3 {[%clk 0:02:58.6]} 6... Bb7 {[%clk 0:02:55.4]}
7. Ne2 {[%clk 0:02:58.3]} 7... Nf6 {[%clk 0:02:53.9]} 8. Ng3 {[%clk 0:02:58.4]}
8... h5 {[%clk 0:02:53]} 9. Qe2 {[%clk 0:02:56.6]} 9... Nbd7 {[%clk 0:02:50.7]}
10. Ng5 {[%clk 0:02:48.6]} 10... h4 {[%clk 0:02:44.2]} 11. Nf1 {[%clk
0:02:43.2]} 11... e5 {[%clk 0:02:41.2]} 12. c3 {[%clk 0:02:41.3]} 12... Qe7
{[%clk 0:02:40.1]} 13. d5 {[%clk 0:02:33.5]} 13... Nc5 {[%clk 0:02:30]} 14. Bc2
{[%clk 0:02:32.8]} 14... c6 {[%clk 0:02:27.1]} 15. dxc6 {[%clk 0:02:26.7]} 15...
Bxc6 {[%clk 0:02:26.2]} 16. Nd2 {[%clk 0:02:25.8]} 16... Bh6 {[%clk 0:02:21.7]}
17. Ndf3 {[%clk 0:02:17.6]} 17... Qb7 {[%clk 0:02:11.7]} 18. O-O {[%clk
0:01:41.3]} 18... Nfxe4 {[%clk 0:01:59]} 19. Nxe4 {[%clk 0:01:27.8]} 19... Bxe4
{[%clk 0:01:53.5]} 20. Bxe4 {[%clk 0:01:13.7]} 20... Qxe4 {[%clk 0:01:52.9]} 21.
Qxe4 {[%clk 0:01:07]} 21... Nxe4 {[%clk 0:01:53.3]} 22. Re1 {[%clk 0:01:07.2]}
22... f5 {[%clk 0:01:51.5]} 23. a4 {[%clk 0:01:02.8]} 23... Bxc1 {[%clk
0:01:48.7]} 24. Rexc1 {[%clk 0:01:02.7]} 24... Rb8 {[%clk 0:01:29.7]} 25. axb5
{[%clk 0:01:01.5]} 25... axb5 {[%clk 0:01:30.1]} 26. Ra7 {[%clk 0:00:57.7]}
26... Kf8 {[%clk 0:00:50]} 27. Rca1 {[%clk 0:00:50.5]} 27... Kg8 {[%clk
0:00:38.3]} 28. Kf1 {[%clk 0:00:45.6]} 28... g5 {[%clk 0:00:34.7]} 29. Rc7
{[%clk 0:00:41.8]} 29... Rh7 {[%clk 0:00:34.4]} 30. Raa7 {[%clk 0:00:38.9]}
30... Rxc7 {[%clk 0:00:32.9]} 31. Rxc7 {[%clk 0:00:39.8]} 31... b4 {[%clk
0:00:29.4]} 32. c4 {[%clk 0:00:39.8]} 32... b3 {[%clk 0:00:25.1]} 33. Ke2 {[%clk
0:00:39.1]} 33... Ra8 {[%clk 0:00:19.9]} 34. Nd2 {[%clk 0:00:37.1]} 34... Ra2
{[%clk 0:00:13.3]} 35. Nxe4 {[%clk 0:00:27.1]} 35... fxe4 {[%clk 0:00:14.2]} 36.
Ke3 {[%clk 0:00:27.8]} 36... Rxb2 {[%clk 0:00:14.8]} 37. Kxe4 {[%clk 0:00:26.8]}
37... Rxf2 {[%clk 0:00:14.5]} 38. Rb7 {[%clk 0:00:25]} 38... b2 {[%clk
0:00:14.7]} 39. Kd5 {[%clk 0:00:25.6]} 39... Rd2+ {[%clk 0:00:15]} 40. Ke6
{[%clk 0:00:23.6]} 40... e4 {[%clk 0:00:14.5]} 41. Kf6 {[%clk 0:00:23.3]} 41...
Rf2+ {[%clk 0:00:09.1]} 42. Kg6 {[%clk 0:00:20.9]} 42... Kf8 {[%clk 0:00:09.6]}
43. Kxg5 {[%clk 0:00:19.4]} 43... e3 {[%clk 0:00:10]} 44. Kxh4 {[%clk
0:00:16.9]} 44... e2 {[%clk 0:00:08.5]} 45. Rb8+ {[%clk 0:00:08.2]} 45... Ke7
{[%clk 0:00:08.4]} 46. Rb7+ {[%clk 0:00:09.1]} 46... Kd8 {[%clk 0:00:08.6]} 47.
Rxb2 {[%clk 0:00:10]} 47... e1=Q {[%clk 0:00:09]} 48. Rb8+ {[%clk 0:00:09.6]}
48... Kc7 {[%clk 0:00:09.5]} 49. Rb6 {[%clk 0:00:10.5]} 49... Qe4+ {[%clk
0:00:09.4]} 50. g4 {[%clk 0:00:10.8]} 50... Qe7+ {[%clk 0:00:08.7]} 51. Kg3
{[%clk 0:00:10.1]} 51... Qe3+ {[%clk 0:00:09.2]} 52. Kh4 {[%clk 0:00:10.1]}
52... Kxb6 {[%clk 0:00:10.1]} 53. g5 {[%clk 0:00:10.2]} 53... Rf4+ {[%clk
0:00:10.4]} 54. Kh5 {[%clk 0:00:10.3]} 54... Qe8+ {[%clk 0:00:11.2]} 55. g6
{[%clk 0:00:09.8]} 55... Rf5+ {[%clk 0:00:11.8]} 56. Kh6 {[%clk 0:00:10.7]}
56... Qf8+ {[%clk 0:00:11.9]} 57. g7 {[%clk 0:00:09.5]} 57... Qf6+ {[%clk
0:00:12.2]} 58. Kh7 {[%clk 0:00:09.8]} 58... Rh5+ {[%clk 0:00:12.9]} 59. Kg8
{[%clk 0:00:10.3]} 59... Qd8+ {[%clk 0:00:13.5]} 60. Kf7 {[%clk 0:00:10.8]}
60... Rf5+ {[%clk 0:00:14]} 61. Ke6 {[%clk 0:00:11.1]} 61... Qf6+ {[%clk
0:00:14.3]} 62. Kd7 {[%clk 0:00:10.7]} 62... Qxg7+ {[%clk 0:00:15.2]} 63. Kc8
{[%clk 0:00:10.9]} 63... Rf8# {[%clk 0:00:15.8]} 0-1

[Event "Early-Titled-Tuesday-Blitz-December-26-2023"]
[Site "Chess.com"]
[Date "2023.12.26"]
[Round "7"]
[White "AnaKuchava"]
[Black "SmirnovTimofey2000"]
[Result "1-0"]
[WhiteElo "2213"]
[BlackElo "2029"]
[TimeControl "180+1"]
[EndTime "9:18:28 PST"]
[Termination "AnaKuchava won on time"]

1. d4 {[%clk 0:03:00.9]} 1... d5 {[%clk 0:02:59.4]} 2. Nf3 {[%clk 0:02:59.9]}
2... Nf6 {[%clk 0:02:59.4]} 3. c4 {[%clk 0:02:59.5]} 3... c6 {[%clk 0:02:59.4]}
4. Qb3 {[%clk 0:02:59.1]} 4... e6 {[%clk 0:02:46]} 5. Bg5 {[%clk 0:02:53.5]}
5... Be7 {[%clk 0:02:45.6]} 6. e3 {[%clk 0:02:45.6]} 6... O-O {[%clk 0:02:42.1]}
7. Bd3 {[%clk 0:02:43.7]} 7... Nbd7 {[%clk 0:02:40.7]} 8. Nc3 {[%clk 0:02:41.7]}
8... h6 {[%clk 0:02:39.4]} 9. Bh4 {[%clk 0:02:39.4]} 9... Nh5 {[%clk 0:02:23.5]}
10. Bxe7 {[%clk 0:02:35.4]} 10... Qxe7 {[%clk 0:02:24.4]} 11. O-O {[%clk
0:02:35.1]} 11... Nhf6 {[%clk 0:02:23.7]} 12. e4 {[%clk 0:02:21.3]} 12... dxe4
{[%clk 0:02:20.8]} 13. Nxe4 {[%clk 0:02:22.2]} 13... Nxe4 {[%clk 0:02:21.1]} 14.
Bxe4 {[%clk 0:02:21.6]} 14... Nf6 {[%clk 0:02:21.5]} 15. Bc2 {[%clk 0:02:20.3]}
15... Rd8 {[%clk 0:02:16]} 16. Rfe1 {[%clk 0:02:14.2]} 16... a5 {[%clk 0:02:15]}
17. Rad1 {[%clk 0:01:58.9]} 17... Qb4 {[%clk 0:02:04.2]} 18. Ne5 {[%clk
0:01:45.1]} 18... Kf8 {[%clk 0:01:48.5]} 19. h3 {[%clk 0:01:37]} 19... Ke7
{[%clk 0:01:33.7]} 20. Qxb4+ {[%clk 0:00:41.5]} 20... axb4 {[%clk 0:01:33.6]}
21. Bb3 {[%clk 0:00:41.7]} 21... Nd7 {[%clk 0:01:22]} 22. Nd3 {[%clk 0:00:39.9]}
22... b6 {[%clk 0:01:09.3]} 23. Nxb4 {[%clk 0:00:39.6]} 23... Bb7 {[%clk
0:01:07.5]} 24. d5 {[%clk 0:00:39.4]} 24... c5 {[%clk 0:01:04.6]} 25. dxe6
{[%clk 0:00:36.5]} 25... fxe6 {[%clk 0:01:04.7]} 26. Nd5+ {[%clk 0:00:30.3]}
26... Bxd5 {[%clk 0:00:54.6]} 27. cxd5 {[%clk 0:00:31.2]} 27... e5 {[%clk
0:00:54.2]} 28. d6+ {[%clk 0:00:28.5]} 28... Kf6 {[%clk 0:00:51.7]} 29. Bd5
{[%clk 0:00:25.3]} 29... Ra4 {[%clk 0:00:47]} 30. a3 {[%clk 0:00:21.1]} 30...
Rd4 {[%clk 0:00:33]} 31. Rxd4 {[%clk 0:00:18.2]} 31... cxd4 {[%clk 0:00:32.1]}
32. Rc1 {[%clk 0:00:18.2]} 32... Nc5 {[%clk 0:00:31.1]} 33. b3 {[%clk
0:00:17.3]} 33... Rxd6 {[%clk 0:00:27.3]} 34. Ba8 {[%clk 0:00:14.1]} 34... Nxb3
{[%clk 0:00:25]} 35. Rb1 {[%clk 0:00:12.1]} 35... Nd2 {[%clk 0:00:18.8]} 36. Rb2
{[%clk 0:00:11.2]} 36... Nc4 {[%clk 0:00:18.7]} 37. Rc2 {[%clk 0:00:11]} 37...
Nxa3 {[%clk 0:00:17.8]} 38. Rd2 {[%clk 0:00:11.2]} 38... Nc4 {[%clk 0:00:16.5]}
39. Rd1 {[%clk 0:00:11.2]} 39... Na5 {[%clk 0:00:16.4]} 40. Be4 {[%clk
0:00:09.6]} 40... Nc6 {[%clk 0:00:14.3]} 41. Kf1 {[%clk 0:00:09.3]} 41... Ne7
{[%clk 0:00:14.4]} 42. Ke2 {[%clk 0:00:08.7]} 42... Nd5 {[%clk 0:00:14.3]} 43.
Bxd5 {[%clk 0:00:05.9]} 43... Rxd5 {[%clk 0:00:14.6]} 44. Rb1 {[%clk 0:00:06.5]}
44... Rd6 {[%clk 0:00:14.5]} 45. Kd3 {[%clk 0:00:06.7]} 45... Ke6 {[%clk
0:00:14]} 46. Rb5 {[%clk 0:00:06.7]} 46... g6 {[%clk 0:00:13.6]} 47. Ke4 {[%clk
0:00:05.6]} 47... Rc6 {[%clk 0:00:11.8]} 48. Rxe5+ {[%clk 0:00:05.5]} 48... Kf6
{[%clk 0:00:11.3]} 49. Rb5 {[%clk 0:00:05]} 49... Rd6 {[%clk 0:00:09.7]} 50. f4
{[%clk 0:00:05.2]} 50... h5 {[%clk 0:00:09.2]} 51. g4 {[%clk 0:00:05.1]} 51...
d3 {[%clk 0:00:09.1]} 52. Rb1 {[%clk 0:00:03.3]} 52... d2 {[%clk 0:00:09.5]} 53.
Rd1 {[%clk 0:00:03.5]} 53... b5 {[%clk 0:00:08.5]} 54. Ke3 {[%clk 0:00:02.8]}
54... hxg4 {[%clk 0:00:05.1]} 55. hxg4 {[%clk 0:00:02.6]} 55... b4 {[%clk
0:00:02.7]} 56. Rxd2 {[%clk 0:00:03]} 1-0

[Event "Early-Titled-Tuesday-Blitz-December-26-2023"]
[Site "Chess.com"]
[Date "2023.12.26"]
[Round "7"]
[White "GMBenjaminBok"]
[Black "frederiksvane"]
[Result "0-1"]
[WhiteElo "2973"]
[BlackElo "2973"]
[TimeControl "180+1"]
[EndTime "9:18:30 PST"]
[Termination "frederiksvane won by checkmate"]

1. d4 {[%clk 0:03:00.9]} 1... Nf6 {[%clk 0:02:59.6]} 2. c4 {[%clk 0:03:01]} 2...
e6 {[%clk 0:03:00.2]} 3. Nc3 {[%clk 0:03:01.4]} 3... Bb4 {[%clk 0:03:00.4]} 4.
Qc2 {[%clk 0:03:01.9]} 4... d6 {[%clk 0:02:57.5]} 5. e3 {[%clk 0:03:01.1]} 5...
O-O {[%clk 0:02:53.6]} 6. Bd3 {[%clk 0:03:01.1]} 6... e5 {[%clk 0:02:54]} 7. Ne2
{[%clk 0:03:01]} 7... Re8 {[%clk 0:02:47.8]} 8. O-O {[%clk 0:03:00.1]} 8... c6
{[%clk 0:02:47.9]} 9. a3 {[%clk 0:02:59.6]} 9... Ba5 {[%clk 0:02:41.1]} 10. b4
{[%clk 0:03:00.1]} 10... Bc7 {[%clk 0:02:41.6]} 11. d5 {[%clk 0:03:00.6]} 11...
a5 {[%clk 0:02:24.2]} 12. Bd2 {[%clk 0:02:53.6]} 12... cxd5 {[%clk 0:02:15.9]}
13. cxd5 {[%clk 0:02:47.9]} 13... Bd7 {[%clk 0:02:16.2]} 14. Ng3 {[%clk
0:02:45.7]} 14... Na6 {[%clk 0:02:12.3]} 15. Qb3 {[%clk 0:02:18.3]} 15... h5
{[%clk 0:01:53.9]} 16. Nge4 {[%clk 0:02:04.6]} 16... Nxe4 {[%clk 0:01:52.7]} 17.
Nxe4 {[%clk 0:02:04.3]} 17... f5 {[%clk 0:01:42.9]} 18. Nc3 {[%clk 0:01:41]}
18... h4 {[%clk 0:01:34.8]} 19. h3 {[%clk 0:01:37.8]} 19... Qf6 {[%clk
0:01:22.6]} 20. Nb5 {[%clk 0:01:22.2]} 20... axb4 {[%clk 0:01:08.6]} 21. axb4
{[%clk 0:01:20.6]} 21... Rec8 {[%clk 0:01:08.1]} 22. Nxc7 {[%clk 0:00:43.6]}
22... Nxc7 {[%clk 0:01:08.1]} 23. b5 {[%clk 0:00:38.1]} 23... Qf7 {[%clk
0:00:59]} 24. Bc4 {[%clk 0:00:30.9]} 24... b6 {[%clk 0:00:28.5]} 25. Rfc1 {[%clk
0:00:28.6]} 25... Qe8 {[%clk 0:00:23.9]} 26. Bb4 {[%clk 0:00:13.6]} 26... Qg6
{[%clk 0:00:20.6]} 27. Be1 {[%clk 0:00:08.9]} 27... Kh8 {[%clk 0:00:14.1]} 28.
Kh2 {[%clk 0:00:08.1]} 28... Qe8 {[%clk 0:00:12]} 29. Rxa8 {[%clk 0:00:07.4]}
29... Rxa8 {[%clk 0:00:12.1]} 30. f4 {[%clk 0:00:08.3]} 30... exf4 {[%clk
0:00:08.9]} 31. exf4 {[%clk 0:00:09.2]} 31... Qe4 {[%clk 0:00:09.3]} 32. Qf3
{[%clk 0:00:04.9]} 32... Qxf3 {[%clk 0:00:09.2]} 33. gxf3 {[%clk 0:00:05.8]}
33... Nxb5 {[%clk 0:00:09.5]} 34. Bxh4 {[%clk 0:00:05]} 34... Nd4 {[%clk
0:00:09.7]} 35. Kg2 {[%clk 0:00:02.2]} 35... Rc8 {[%clk 0:00:10.2]} 36. Bf2
{[%clk 0:00:01.9]} 36... Ne2 {[%clk 0:00:07.8]} 37. Re1 {[%clk 0:00:01.5]} 37...
Nxf4+ {[%clk 0:00:07.9]} 38. Kg3 {[%clk 0:00:02]} 38... Rxc4 {[%clk 0:00:08.6]}
39. Re7 {[%clk 0:00:02.1]} 39... Bb5 {[%clk 0:00:06.7]} 40. Bxb6 {[%clk
0:00:01.7]} 40... Nxd5 {[%clk 0:00:06.9]} 41. Rb7 {[%clk 0:00:01.9]} 41... Nxb6
{[%clk 0:00:07.1]} 42. Rxb6 {[%clk 0:00:02.8]} 42... Bc6 {[%clk 0:00:07.9]} 43.
Rb8+ {[%clk 0:00:02.9]} 43... Kh7 {[%clk 0:00:08.5]} 44. Rd8 {[%clk 0:00:03.8]}
44... d5 {[%clk 0:00:09.1]} 45. Rd6 {[%clk 0:00:03.8]} 45... Kg8 {[%clk
0:00:08.9]} 46. h4 {[%clk 0:00:03.9]} 46... Kf7 {[%clk 0:00:09.4]} 47. h5 {[%clk
0:00:04.5]} 47... d4 {[%clk 0:00:09.8]} 48. Kf4 {[%clk 0:00:04.5]} 48... Rc5
{[%clk 0:00:09.5]} 49. Rxd4 {[%clk 0:00:04]} 49... Rd5 {[%clk 0:00:10]} 50. Rxd5
{[%clk 0:00:03.6]} 50... Bxd5 {[%clk 0:00:10.5]} 51. Kxf5 {[%clk 0:00:03.7]}
51... Bxf3 {[%clk 0:00:10]} 52. Kg5 {[%clk 0:00:04.3]} 52... Bxh5 {[%clk
0:00:08.2]} 53. Kxh5 {[%clk 0:00:04.5]} 53... Kf6 {[%clk 0:00:08.9]} 54. Kh4
{[%clk 0:00:02.9]} 54... Kf5 {[%clk 0:00:09.2]} 55. Kh3 {[%clk 0:00:02.6]} 55...
Kf4 {[%clk 0:00:07.8]} 56. Kh2 {[%clk 0:00:02.5]} 56... Kf3 {[%clk 0:00:07.2]}
57. Kh1 {[%clk 0:00:02.4]} 57... Kg3 {[%clk 0:00:07]} 58. Kg1 {[%clk 0:00:02.6]}
58... g5 {[%clk 0:00:07.3]} 59. Kh1 {[%clk 0:00:03.2]} 59... g4 {[%clk
0:00:07.5]} 60. Kg1 {[%clk 0:00:03.3]} 60... Kh3 {[%clk 0:00:08.1]} 61. Kh1
{[%clk 0:00:03.8]} 61... g3 {[%clk 0:00:08.8]} 62. Kg1 {[%clk 0:00:04.5]} 62...
g2 {[%clk 0:00:09.4]} 63. Kf2 {[%clk 0:00:05.1]} 63... Kh2 {[%clk 0:00:10.3]}
64. Ke3 {[%clk 0:00:05.6]} 64... g1=Q+ {[%clk 0:00:11]} 65. Ke4 {[%clk
0:00:06.5]} 65... Qf2 {[%clk 0:00:11.5]} 66. Kd5 {[%clk 0:00:07.4]} 66... Qe3
{[%clk 0:00:11.6]} 67. Kc6 {[%clk 0:00:08.3]} 67... Qd4 {[%clk 0:00:12.2]} 68.
Kb7 {[%clk 0:00:09.2]} 68... Qc5 {[%clk 0:00:12.8]} 69. Kb8 {[%clk 0:00:09.5]}
69... Qc6 {[%clk 0:00:12.9]} 70. Ka7 {[%clk 0:00:09.8]} 70... Qb5 {[%clk
0:00:13.5]} 71. Ka8 {[%clk 0:00:10.2]} 71... Kg3 {[%clk 0:00:14.4]} 72. Ka7
{[%clk 0:00:11.1]} 72... Kf4 {[%clk 0:00:15.3]} 73. Ka8 {[%clk 0:00:12]} 73...
Ke5 {[%clk 0:00:16.2]} 74. Ka7 {[%clk 0:00:12.9]} 74... Kd6 {[%clk 0:00:17.1]}
75. Ka8 {[%clk 0:00:13.8]} 75... Kc7 {[%clk 0:00:18]} 76. Ka7 {[%clk 0:00:14.7]}
76... Qa5# {[%clk 0:00:18.7]} 0-1

[Event "Early-Titled-Tuesday-Blitz-December-26-2023"]
[Site "Chess.com"]
[Date "2023.12.26"]
[Round "7"]
[White "Romn69"]
[Black "ChessBliss09"]
[Result "1-0"]
[WhiteElo "2377"]
[BlackElo "2085"]
[TimeControl "180+1"]
[EndTime "9:18:31 PST"]
[Termination "Romn69 won by checkmate"]

1. d4 {[%clk 0:03:00.9]} 1... Nf6 {[%clk 0:02:59]} 2. Nf3 {[%clk 0:03:00.5]}
2... d5 {[%clk 0:02:58.7]} 3. c4 {[%clk 0:03:00.5]} 3... c6 {[%clk 0:02:58]} 4.
Nc3 {[%clk 0:02:59.8]} 4... dxc4 {[%clk 0:02:58]} 5. a4 {[%clk 0:02:56.6]} 5...
Bf5 {[%clk 0:02:56.8]} 6. Ne5 {[%clk 0:02:53.9]} 6... Nbd7 {[%clk 0:02:44.5]} 7.
Nxc4 {[%clk 0:02:53.2]} 7... e6 {[%clk 0:02:39.8]} 8. f3 {[%clk 0:02:37.1]} 8...
Bb4 {[%clk 0:02:32.5]} 9. e4 {[%clk 0:02:26.5]} 9... Bxe4 {[%clk 0:02:20.3]} 10.
fxe4 {[%clk 0:02:26.1]} 10... Nxe4 {[%clk 0:02:21.2]} 11. Qf3 {[%clk 0:02:25.3]}
11... Ndf6 {[%clk 0:02:16.3]} 12. Bf4 {[%clk 0:01:37.9]} 12... Qxd4 {[%clk
0:01:46.5]} 13. Rd1 {[%clk 0:01:36.8]} 13... Bxc3+ {[%clk 0:01:30.6]} 14. bxc3
{[%clk 0:01:34.4]} 14... Qxc3+ {[%clk 0:01:30.6]} 15. Qxc3 {[%clk 0:01:31.3]}
15... Nxc3 {[%clk 0:01:31.2]} 16. Rc1 {[%clk 0:01:02.6]} 16... Nxa4 {[%clk
0:00:43.4]} 17. Nd6+ {[%clk 0:00:57.4]} 17... Ke7 {[%clk 0:00:43.6]} 18. Nxb7
{[%clk 0:00:54.4]} 18... Nd5 {[%clk 0:00:40.8]} 19. Bd6+ {[%clk 0:00:36.2]}
19... Kd7 {[%clk 0:00:33.5]} 20. Bg3 {[%clk 0:00:37.1]} 20... f6 {[%clk
0:00:19]} 21. Bd3 {[%clk 0:00:28]} 21... g6 {[%clk 0:00:13.3]} 22. O-O {[%clk
0:00:23.8]} 22... e5 {[%clk 0:00:13]} 23. Be4 {[%clk 0:00:17.5]} 23... Kc7
{[%clk 0:00:09.8]} 24. Nc5 {[%clk 0:00:15.4]} 24... Nxc5 {[%clk 0:00:09]} 25.
Rxc5 {[%clk 0:00:16.3]} 25... Kd6 {[%clk 0:00:09.6]} 26. Rfc1 {[%clk 0:00:13.7]}
26... Ne7 {[%clk 0:00:05.3]} 27. Bxc6 {[%clk 0:00:12.7]} 27... Nxc6 {[%clk
0:00:05]} 28. Rxc6+ {[%clk 0:00:13.6]} 28... Kd5 {[%clk 0:00:05.2]} 29. Rxf6
{[%clk 0:00:12.7]} 29... Rac8 {[%clk 0:00:05.3]} 30. Rd1+ {[%clk 0:00:11.7]}
30... Ke4 {[%clk 0:00:05.4]} 31. Re1+ {[%clk 0:00:10.8]} 31... Kd3 {[%clk
0:00:05]} 32. Rxe5 {[%clk 0:00:08.7]} 32... Rc1+ {[%clk 0:00:05.1]} 33. Re1
{[%clk 0:00:08.8]} 33... Rxe1+ {[%clk 0:00:03.8]} 34. Bxe1 {[%clk 0:00:09.7]}
34... a5 {[%clk 0:00:03.8]} 35. Ra6 {[%clk 0:00:09.5]} 35... Rc8 {[%clk
0:00:03.8]} 36. Rxa5 {[%clk 0:00:08.6]} 36... Rc1 {[%clk 0:00:04.4]} 37. Kf1
{[%clk 0:00:08.7]} 37... Rb1 {[%clk 0:00:03.5]} 38. Rd5+ {[%clk 0:00:09.1]}
38... Ke4 {[%clk 0:00:03.4]} 39. Rd2 {[%clk 0:00:08.1]} 39... h5 {[%clk
0:00:03.4]} 40. Re2+ {[%clk 0:00:08.4]} 40... Kf5 {[%clk 0:00:03.4]} 41. Kf2
{[%clk 0:00:08.6]} 41... Kg5 {[%clk 0:00:03.2]} 42. h3 {[%clk 0:00:08.5]} 42...
Kf6 {[%clk 0:00:03.6]} 43. Bd2 {[%clk 0:00:08.6]} 43... Rb5 {[%clk 0:00:04]} 44.
Bc3+ {[%clk 0:00:08.9]} 44... Kf7 {[%clk 0:00:03.3]} 45. Re3 {[%clk 0:00:09.1]}
45... Rf5+ {[%clk 0:00:03.8]} 46. Ke2 {[%clk 0:00:09]} 46... g5 {[%clk
0:00:03.5]} 47. Rf3 {[%clk 0:00:09.2]} 47... Kg6 {[%clk 0:00:02.6]} 48. Rxf5
{[%clk 0:00:08.7]} 48... Kxf5 {[%clk 0:00:03.5]} 49. Kf3 {[%clk 0:00:08.8]}
49... g4+ {[%clk 0:00:04.4]} 50. hxg4+ {[%clk 0:00:08.7]} 50... hxg4+ {[%clk
0:00:05.3]} 51. Kg3 {[%clk 0:00:09.1]} 51... Kg5 {[%clk 0:00:06.2]} 52. Bd2+
{[%clk 0:00:09]} 52... Kh5 {[%clk 0:00:06.2]} 53. Bc1 {[%clk 0:00:09.4]} 53...
Kg6 {[%clk 0:00:04.9]} 54. Kxg4 {[%clk 0:00:10.3]} 54... Kf6 {[%clk 0:00:05]}
55. Kf4 {[%clk 0:00:10.2]} 55... Kg7 {[%clk 0:00:05.9]} 56. g4 {[%clk
0:00:10.5]} 56... Kg6 {[%clk 0:00:06.8]} 57. g5 {[%clk 0:00:10.5]} 57... Kh7
{[%clk 0:00:06.9]} 58. Kf5 {[%clk 0:00:10.6]} 58... Kg7 {[%clk 0:00:07.5]} 59.
g6 {[%clk 0:00:10.3]} 59... Kh8 {[%clk 0:00:06.8]} 60. Kf6 {[%clk 0:00:10.3]}
60... Kg8 {[%clk 0:00:07.2]} 61. Bd2 {[%clk 0:00:08.6]} 61... Kh8 {[%clk
0:00:06.8]} 62. Ba5 {[%clk 0:00:08.7]} 62... Kg8 {[%clk 0:00:06.9]} 63. g7
{[%clk 0:00:08.5]} 63... Kh7 {[%clk 0:00:07.1]} 64. Kf7 {[%clk 0:00:08.6]} 64...
Kh6 {[%clk 0:00:07.5]} 65. g8=Q {[%clk 0:00:08.7]} 65... Kh5 {[%clk 0:00:08.2]}
66. Qg3 {[%clk 0:00:08.6]} 66... Kh6 {[%clk 0:00:07.7]} 67. Qh4# {[%clk
0:00:09.1]} 1-0

[Event "Early-Titled-Tuesday-Blitz-December-26-2023"]
[Site "Chess.com"]
[Date "2023.12.26"]
[Round "7"]
[White "marvinguevara"]
[Black "RodokininEV"]
[Result "1-0"]
[WhiteElo "2213"]
[BlackElo "2560"]
[TimeControl "180+1"]
[EndTime "9:18:33 PST"]
[Termination "marvinguevara won by resignation"]

1. e4 {[%clk 0:03:00.9]} 1... c5 {[%clk 0:02:58]} 2. d4 {[%clk 0:03:00.1]} 2...
cxd4 {[%clk 0:02:57.6]} 3. c3 {[%clk 0:03:00.3]} 3... dxc3 {[%clk 0:02:58.5]} 4.
Bc4 {[%clk 0:02:59.8]} 4... e6 {[%clk 0:02:58.4]} 5. Nf3 {[%clk 0:02:59.3]} 5...
a6 {[%clk 0:02:58.4]} 6. O-O {[%clk 0:02:58.4]} 6... Nc6 {[%clk 0:02:57.5]} 7.
Nxc3 {[%clk 0:02:57.7]} 7... b5 {[%clk 0:02:53.3]} 8. Bb3 {[%clk 0:02:57.5]}
8... Bb7 {[%clk 0:02:53.7]} 9. Nd5 {[%clk 0:02:53.7]} 9... Na5 {[%clk
0:02:51.8]} 10. Re1 {[%clk 0:02:42.1]} 10... Ne7 {[%clk 0:02:43.4]} 11. Bg5
{[%clk 0:02:38.6]} 11... Nxb3 {[%clk 0:02:39.8]} 12. Qxb3 {[%clk 0:02:31.9]}
12... exd5 {[%clk 0:02:31.5]} 13. exd5 {[%clk 0:02:28.6]} 13... d6 {[%clk
0:02:31.7]} 14. Nd4 {[%clk 0:02:23.6]} 14... h6 {[%clk 0:02:23.3]} 15. Bxe7
{[%clk 0:02:15.1]} 15... Bxe7 {[%clk 0:02:24.2]} 16. Nf5 {[%clk 0:02:14.6]}
16... O-O {[%clk 0:02:22.6]} 17. Rxe7 {[%clk 0:02:08.4]} 17... Bc8 {[%clk
0:02:19.2]} 18. Nxh6+ {[%clk 0:01:59.1]} 18... gxh6 {[%clk 0:02:16.1]} 19. Qg3+
{[%clk 0:01:29.3]} 19... Kh8 {[%clk 0:02:11.4]} 20. Qh4 {[%clk 0:01:23.7]} 20...
Bf5 {[%clk 0:01:45.8]} 21. Qxh6+ {[%clk 0:01:18.3]} 21... Bh7 {[%clk 0:01:45.9]}
22. Rae1 {[%clk 0:01:08.9]} 22... Qc8 {[%clk 0:01:13.2]} 23. Qf6+ {[%clk
0:00:51.8]} 23... Kg8 {[%clk 0:01:08.7]} 24. R7e3 {[%clk 0:00:41.1]} 24... Qf5
{[%clk 0:00:31.2]} 25. Rg3+ {[%clk 0:00:38.7]} 25... Qg6 {[%clk 0:00:25.6]} 26.
Ree3 {[%clk 0:00:23.5]} 26... Rfe8 {[%clk 0:00:24.8]} 27. Rxg6+ {[%clk 0:00:16]}
27... Bxg6 {[%clk 0:00:25.7]} 28. Qxd6 {[%clk 0:00:14.4]} 28... Red8 {[%clk
0:00:24.8]} 29. Qe5 {[%clk 0:00:12.2]} 29... Rac8 {[%clk 0:00:23.9]} 30. f4
{[%clk 0:00:10.7]} 30... Rc1+ {[%clk 0:00:22.1]} 31. Kf2 {[%clk 0:00:10.1]}
31... Rc2+ {[%clk 0:00:21.1]} 32. Kf3 {[%clk 0:00:09.2]} 32... Rc5 {[%clk
0:00:17.7]} 33. Qe7 {[%clk 0:00:06.5]} 33... Rcxd5 {[%clk 0:00:16.4]} 34. g4
{[%clk 0:00:06.2]} 34... R5d7 {[%clk 0:00:14.3]} 35. Qg5 {[%clk 0:00:04.9]}
35... Kf8 {[%clk 0:00:12.9]} 36. f5 {[%clk 0:00:05]} 36... Bh7 {[%clk
0:00:12.9]} 37. Qh6+ {[%clk 0:00:05.1]} 37... Kg8 {[%clk 0:00:13.4]} 38. f6
{[%clk 0:00:05.5]} 38... Be4+ {[%clk 0:00:07.1]} 39. Kxe4 {[%clk 0:00:04.8]}
39... Re8+ {[%clk 0:00:07.4]} 40. Kf4 {[%clk 0:00:04.4]} 40... Rd4+ {[%clk
0:00:07.1]} 41. Kf3 {[%clk 0:00:04.6]} 41... Rxe3+ {[%clk 0:00:06.5]} 42. Kxe3
{[%clk 0:00:04.4]} 42... Rxg4 {[%clk 0:00:06.9]} 43. Kf3 {[%clk 0:00:03.8]}
43... Rg6 {[%clk 0:00:07.2]} 44. Qh4 {[%clk 0:00:04]} 44... Kf8 {[%clk 0:00:07]}
45. Kf4 {[%clk 0:00:04.2]} 45... Ke8 {[%clk 0:00:07.1]} 46. Kf5 {[%clk
0:00:04.4]} 46... Kd7 {[%clk 0:00:07]} 47. Qd4+ {[%clk 0:00:04.4]} 47... Kc6
{[%clk 0:00:07.2]} 48. Qe4+ {[%clk 0:00:04.2]} 48... Kb6 {[%clk 0:00:07.6]} 49.
Qe7 {[%clk 0:00:04]} 49... Rg2 {[%clk 0:00:07.2]} 50. Qd8+ {[%clk 0:00:03.9]}
50... Kc5 {[%clk 0:00:04.8]} 51. Qc7+ {[%clk 0:00:03.7]} 51... Kd4 {[%clk
0:00:02.9]} 52. Qe5+ {[%clk 0:00:03.1]} 52... Kc4 {[%clk 0:00:01.5]} 53. Qe4+
{[%clk 0:00:03.7]} 53... Kc5 {[%clk 0:00:01.9]} 54. Qxg2 {[%clk 0:00:04.6]}
54... b4 {[%clk 0:00:02.5]} 55. Qe2 {[%clk 0:00:05]} 55... b3 {[%clk 0:00:03.4]}
56. Qe7+ {[%clk 0:00:05.5]} 56... Kc4 {[%clk 0:00:02.3]} 57. Qa3 {[%clk
0:00:06.4]} 57... bxa2 {[%clk 0:00:02.1]} 58. Qxa2+ {[%clk 0:00:07]} 58... Kb5
{[%clk 0:00:03]} 59. Qa3 {[%clk 0:00:06.6]} 59... a5 {[%clk 0:00:03.9]} 60. h4
{[%clk 0:00:06.6]} 60... a4 {[%clk 0:00:04.8]} 61. h5 {[%clk 0:00:06.9]} 61...
Ka5 {[%clk 0:00:05.5]} 62. h6 {[%clk 0:00:07.3]} 62... Kb5 {[%clk 0:00:06.4]}
63. h7 {[%clk 0:00:08.2]} 1-0